Cogmind - Beta 9.1 @@@ ROGUE MODE // 2019.10.30 @ 10:41:56 Player: MrPainting Result: Destroyed by 8R-AWN with 8R-AWN's Boregun Performance ------------- Evolutions (0) 0 Regions Visited (3) 600 Robots Destroyed (24) 120 Value Destroyed (234) 234 Prototype IDs (3) 60 Alien Tech Used (0) 0 Bonus (189) 189 TOTAL SCORE: 1203 Bonus ------- Aligned with FarCom 300 Friendly Fire -111 Cogmind --------- Core Integrity 0/250 Matter 100/300 Energy 98/100 System Corruption 0% Temperature Cool (12) Location -10/Exiles Parts ------- Power (1) Propulsion (2) Utility (2) Large Storage Unit Weapon (2) Flak Cannon Inventory (10) Ion Engine Improved Heat Sink Humpback Guided Plasma Cannon Improved Datajack Field Lobotomy Kit Peak State ------------ Power Light Nuclear Core Propulsion Light Treads Light Treads Utility Large Storage Unit Light Armor Plating Weapon AWS/Thermal Inventory Ion Engine Improved Heat Sink Humpback Flak Cannon Missile Launcher Improved Datajack Field Lobotomy Kit [Rating: 25] Favorites ----------- Power Ion Engine Engine Ion Engine Power Core Light Nuclear Core Propulsion Light Treads Treads Light Treads Leg Aluminum Leg Utility Large Storage Unit Device Sensor Array Storage Large Storage Unit Protection Light Armor Plating Weapon Light Cannon Energy Gun Medium Laser Energy Cannon Guided Plasma Cannon Ballistic Cannon Light Cannon Launcher Missile Launcher Special Weapon Field Lobotomy Kit Build | -11 -10 -10 -10 ------- Run | Scr Mat Min Exi Slots Evolved . | . . . . Power . | . . . . Propulsion . | . . . . Utility . | . . . . Weapon . | . . . . Parts Attached 31 | 7 9 3 12 Power 2 | 1 . . 1 Engine 1 | 1 . . . Core 1 | . . . 1 Reactor . | . . . . Propulsion 6 | 1 3 2 . Treads 4 | . 2 2 . Leg 2 | 1 1 . . Wheel . | . . . . Hover . | . . . . Flight . | . . . . Utility 8 | 2 4 1 1 Device 1 | . 1 . . Storage 5 | 2 2 1 . Processor . | . . . . Hackware . | . . . . Protection 2 | . 1 . 1 Artifact . | . . . . Weapon 15 | 3 2 . 10 Energy Gun 5 | 3 . . 2 Energy Cannon 3 | . . . 3 Ballistic Gun . | . . . . Ballistic Cannon 4 | . 2 . 2 Launcher 2 | . . . 2 Special Weapon 1 | . . . 1 Impact Weapon . | . . . . Slashing Weapon . | . . . . Piercing Weapon . | . . . . Special Melee Weapon . | . . . . Unidentified Prototypes 3 | . . . 3 Parts Lost 6 | . . . 6 Power 1 | . . . 1 Propulsion 2 | . . . 2 Utility 1 | . . . 1 Weapon 2 | . . . 2 Highest Loss Streak 6 | . . . 6 Average Slot Usage (%) 95 | . 89 100 96 Engine 12 | . 14 14 11 Core 1 | . . . 2 Treads 21 | . 3 28 26 Leg 3 | . 15 . . Storage 25 | . 23 26 25 Protection 1 | . 1 1 2 Energy Gun 5 | . 24 . . Ballistic Cannon 16 | . 3 28 15 Launcher 4 | . . . 9 Naked Turns . | . . . . Heaviest Build 49 | 17 28 43 49 Greatest Support 40 | 10 40 40 40 Greatest Overweight (x) 1 | 1 1 1 1 Average Overweight (x) . | . . . . Largest Inventory Capacity 16 | 8 12 16 16 Average Capacity 13 | 6 9 15 14 Most Carried 16 | 6 10 16 16 Average Carried 12 | 3 8 15 14 Final Capacity 16 | 8 10 16 10 Final Carried 16 | 6 10 16 7 Class Distribution -------------------- 100% | Mutant Dominant Class ---------------- Mutant | -10/Materials Mutant | -10/Mines Mutant | -10/Exiles Resources | -11 -10 -10 -10 ----------- Run | Scr Mat Min Exi Matter Collected 634 | 312 102 150 70 Remotely . | . . . . Salvage Created 574 | 142 195 132 105 Parts 25 | 7 8 10 . Haulers Intercepted 1 | . 1 . . Recyclers Shooed . | . . . . Parts Field Recycled . | . . . . Retrieved Matter . | . . . . Parts Self-Destructed . | . . . . Prevented . | . . . . Kills | -11 -10 -10 -10 ------- Run | Scr Mat Min Exi Combat Hostiles Destroyed 14 | . 3 4 7 Guns 9 | . 2 . 7 Cannons 4 | . . 4 . Classes Destroyed 8 | 3 2 2 1 Worker 6 | 2 1 3 . Tunneler 1 | 1 . . . Hauler 1 | . 1 . . Recycler 1 | 1 . . . Swarmer 2 | . . 2 . Grunt 3 | . 3 . . Sentry 2 | . . 2 . Assembled 7 | . . . 7 Best Kill Streak 8 | 2 3 3 8 Combat Bots Only 7 | . 2 2 7 Max Kills in Single Turn 1 | 1 1 1 1 Gunslinging . | . . . . Exploded . | . . . . Melee . | . . . . Uniques/NPCs Destroyed 1 | . . . 1 EX-BIN (-10/Exiles) Combat | -11 -10 -10 -10 -------- Run | Scr Mat Min Exi Damage Taken 1367 | . 107 309 951 Core 256 | . 22 31 203 Absorbed by Shields . | . . . . Core Remaining (%) 100 | 100 . . . Volleys Fired 60 | 15 17 15 13 Largest 2 | 2 2 2 2 Hottest 120 | 90 90 70 120 Shots Fired 144 | 30 34 30 50 Gun 97 | 30 34 . 33 Cannon 35 | . . 30 5 Launcher 12 | . . . 12 Special . | . . . . Kinetic 34 | . . 30 4 Thermal 87 | 19 34 . 34 Explosive 12 | . . . 12 Electromagnetic 11 | 11 . . . Robot Hit Streak 23 | 8 13 6 23 Robot Miss Streak 3 | 2 2 1 3 Penetration Max . | . . . . Secondary Targets . | . . . . Autonomous 34 | . . . 34 Shots Hit Robots 105 | 19 27 19 40 Core Hits 33 | 5 8 8 12 Critical Hits . | . . . . Critical Kills . | . . . . Critical Parts Destroyed . | . . . . Melee Attacks . | . . . . Impact . | . . . . Slashing . | . . . . Piercing . | . . . . Sneak Attacks . | . . . . Combat Hostiles . | . . . . Follow-up Attacks . | . . . . Damage Inflicted 1664 | 233 301 299 831 Guns 974 | 211 301 . 462 Cannons 396 | . . 299 97 Explosions 294 | 22 . . 272 Melee . | . . . . Ramming . | . . . . Kinetic 359 | . . 299 60 Thermal 928 | 128 301 . 499 Explosive 272 | . . . 272 Electromagnetic 105 | 105 . . . Impact . | . . . . Slashing . | . . . . Piercing . | . . . . Highest Corruption . | . . . . Average Corruption . | . . . . Corruption Purged . | . . . . Overload Shots . | . . . . Overflow Damage 11 | . . . 11 Projectiles . | . . . . Explosions 11 | . . . 11 Melee . | . . . . Knockbacks 2 | . . 2 . Impact . | . . . . Kinetic 2 | . . 2 . Secondary . | . . . . Self-Inflicted Damage 133 | . . . 133 Shots 4 | . . . 4 Rammed . | . . . . Targets Rammed . | . . . . Kicked . | . . . . Crushed . | . . . . Highest Temperature 282 | 150 282 126 111 Average Temperature 69 | 47 104 51 60 Received Heat Transfer 132 | . 60 72 . Effects 1 | . 1 . . Energy Bleed 1 | . 1 . . Siege Activations . | . . . . Robots Corrupted . | . . . . Combat Hostiles . | . . . . Parts Fried . | . . . . Impact Corruptions . | . . . . Robots Melted 1 | . 1 . . Combat Hostiles 1 | . 1 . . Parts Melted 2 | . 2 . . Heat Transferred 1890 | 347 782 . 761 Parts Sabotaged . | . . . . Parts Stolen . | . . . . Parts Stripped . | . . . . Power Chain Reactions 1 | 1 . . . Missiles Intercepted . | . . . . Alert | -11 -10 -10 -10 ------- Run | Scr Mat Min Exi Peak Influence 110 | 20 100 110 . Average Influence 23 | 7 31 23 . Maximum Alert Level . | . . . . Low Security (%) 100 | . . . . Level 1 . | . . . . Level 2 . | . . . . Level 3 . | . . . . Level 4 . | . . . . Level 5 . | . . . . High Security . | . . . . Max Security . | . . . . Squads Dispatched 3 | . 2 1 . Investigation 2 | . 1 1 . Extermination . | . . . . Reinforcement 1 | . 1 . . Assault . | . . . . Garrison . | . . . . Intercept . | . . . . Construction Impeded . | . . . . Haulers Reinforced . | . . . . Stealth | -11 -10 -10 -10 --------- Run | Scr Mat Min Exi Distress Signals . | . . . . Communications Jammed . | . . . . Distress Signals . | . . . . Times Spotted 18 | . 6 4 8 Peak Tracking Total 9 | . 2 2 9 Tactical Retreats . | . . . . Traps | -11 -10 -10 -10 ------- Run | Scr Mat Min Exi Traps Triggered 1 | . 1 . . Indirectly . | . . . . Trap Hack Attempts . | . . . . Triggered . | . . . . Disarmed . | . . . . Reprogrammed . | . . . . Reused . | . . . . Traps Extracted . | . . . . Installed . | . . . . Triggered . | . . . . Machines | -11 -10 -10 -10 ---------- Run | Scr Mat Min Exi Machines Disabled 5 | . . . 5 Max in Single Turn 3 | . . . 3 Machines Sabotaged . | . . . . Garrisons Compromised . | . . . . Overloaded Fab Kills . | . . . . Fab Network Shutdowns . | . . . . Hacking | -11 -10 -10 -10 --------- Run | Scr Mat Min Exi Machines Accessed 3 | . 2 1 . Terminals 2 | . 2 . . Fabricators . | . . . . Repair Stations . | . . . . Recycling Units . | . . . . Scanalyzers . | . . . . Garrison Access . | . . . . Total Hacks 7 | . 6 1 . Successful 3 | . 2 1 . Failed 4 | . 4 . . Catastrophic . | . . . . Database Lockouts . | . . . . Manual 7 | . 6 . 1 Terminals 6 | . 6 . . Fabricators . | . . . . Repair Stations . | . . . . Recycling Units . | . . . . Scanalyzers . | . . . . Garrison Access . | . . . . Terminal Hacks 2 | . 1 1 . Open Door 1 | . . 1 . Recall Investigation 1 | . 1 . . Fabricator Hacks . | . . . . Repair Station Hacks . | . . . . Recycling Unit Hacks . | . . . . Scanalyzer . | . . . . Garrison Access Hacks . | . . . . Unauthorized Hacks 5 | . 5 . . Terminals 1 | . 1 . . Botnet 1 | . 1 . . Fabricators . | . . . . Repair Stations . | . . . . Recycling Units . | . . . . Scanalyzers . | . . . . Garrison Access . | . . . . Data Cores Recovered . | . . . . Used . | . . . . Hacking Detections 2 | . 2 . . Full Trace Events . | . . . . Feedback Events . | . . . . Feedback Blocked . | . . . . Robot Schematics Acquired . | . . . . Robots Built . | . . . . Matter . | . . . . Time . | . . . . Total Robot Build Rating . | . . . . Part Schematics Acquired . | . . . . Parts Built . | . . . . Matter . | . . . . Time . | . . . . Total Part Build Rating . | . . . . Parts Repaired . | . . . . Time . | . . . . Parts Recycled . | . . . . Recycled Matter . | . . . . Retrieved Matter . | . . . . Retrieved Components . | . . . . Parts Scanalyzed . | . . . . Part Schematics Acquired . | . . . . Parts Damaged . | . . . . Bothacking | -11 -10 -10 -10 ------------ Run | Scr Mat Min Exi Used RIF Installer . | . . . . Robots Hacked . | . . . . Non-combat . | . . . . Combat . | . . . . Robot Hacks Applied . | . . . . Relay Couplers Released . | . . . . Robots Rewired . | . . . . Allies Hacked . | . . . . Hacks Repelled . | . . . . Allies | -11 -10 -10 -10 -------- Run | Scr Mat Min Exi Total Allies . | . . . . Largest Group . | . . . . Highest-Rated Group . | . . . . Highest-Rated Ally . | . . . . Total Orders . | . . . . Ally Attacks . | . . . . Total Damage . | . . . . Kills . | . . . . Allies Corrupted . | . . . . Allies Melted . | . . . . Intel | -11 -10 -10 -10 ------- Run | Scr Mat Min Exi Robot Analysis Total . | . . . . Derelict Logs Recovered . | . . . . Drone Launches . | . . . . Drone Recoveries . | . . . . Exploration | -11 -10 -10 -10 ------------- Run | Scr Mat Min Exi Turns Passed 2218 | 178 451 629 960 Spaces Moved 1144 | 91 247 321 485 Core 17 | 17 . . . Treads 828 | . 22 321 485 Legs 299 | 74 225 . . Wheels . | . . . . Hover . | . . . . Flight . | . . . . Fastest Speed 50 | 50 150 160 160 Average Speed 167 | 125 150 176 176 Slowest Speed 180 | 150 160 180 180 Overloaded Moves . | . . . . Propulsion Burnouts . | . . . . Robots Hopped . | . . . . Cave-ins Triggered . | . . . . Exploration Rate (%) 46 | 6 33 74 71 Regions Visited 3 Branch Regions 2 Pre-discovered Areas . | . . . . Known Exits Taken . | . . . . Unknown Exits Taken 3 | 1 1 1 . Scrap Searched 2 | . . 2 . Spaces Dug . | . . . . Terrain Destroyed 33 | . . . 33 Melee . | . . . . Projectile 2 | . . . 2 AOE 31 | . . . 31 Actions | -11 -10 -10 -10 --------- Run | Scr Mat Min Exi Total 1348 | 124 292 353 579 Wait 41 | . 3 2 36 Move 1141 | 90 246 320 485 Hop . | . . . . Pick Up 41 | 12 9 9 11 Fast Attach 3 | . 3 . . Attach 16 | 6 1 . 9 Detach 2 | . . . 2 Swap 12 | 1 5 3 3 Drop 32 | . 8 4 20 Fire 60 | 15 17 15 13 Melee . | . . . . Ram . | . . . . Kick . | . . . . Crush . | . . . . Escape Stasis . | . . . . Rewire . | . . . . Trap . | . . . . Miscellaneous . | . . . . Route ------- -11/Scrapyard -10/Materials -10/Mines (discovered 2 exits: [*Mat] / *Exi) -10/Exiles (discovered 1 exit: [*Min]) History --------- Turn | Location | Event 11 | -11/Scrapyard | Discovered new exit (range 16) 179 | -11/Scrapyard | Entered Materials 313 | -10/Materials | Build established: Mutant 528 | -10/Materials | Discovered new exit (range 9) 630 | -10/Materials | Entered Mines 710 | -10/Mines | Met a Derelict shopkeep closing up shop 843 | -10/Mines | Discovered new exit (range 16) 1251 | -10/Mines | Deemed a non-threat by the Exiles lab entrance 1251 | -10/Mines | Discovered new exit (range 5) 1259 | -10/Mines | Entered Exiles 1308 | -10/Exiles | Met 8R-AWN 1335 | -10/Exiles | Met EX-HEX 1389 | -10/Exiles | Met EX-BIN 1425 | -10/Exiles | Aligned with FarCom system 1427 | -10/Exiles | Given EX-Vault access code 1468 | -10/Exiles | Opened EX-Vault 1478 | -10/Exiles | Found Prototype Energy Gun 1479 | -10/Exiles | Identified AWS/Thermal 1483 | -10/Exiles | Found Prototype Energy Cannon 1484 | -10/Exiles | Identified Gui. Plasma Cannon 1487 | -10/Exiles | Found Prototype Special Weapon 1488 | -10/Exiles | Identified Field Lobotomy Kit 1557 | -10/Exiles | Warned to stay clear of 0b10 Research branches 1677 | -10/Exiles | Met EX-DEC 2005 | -10/Exiles | Discovered new exit (range 14) 2143 | -10/Exiles | Attacked by the Exiles 2158 | -10/Exiles | Destroyed EX-BIN 2188 | -10/Exiles | Core integrity fell below 50% 2204 | -10/Exiles | Core integrity fell below 20% 2210 | -10/Exiles | Destroyed 7 combat bots 2219 | -10/Exiles | Destroyed by 8R-AWN with 8R-AWN's Boregun Last Messages --------------- 02181_ Acquired Gui. Plasma Cannon. 02183_ The unstable cave ceiling collapses. 02185_ Penetrated by HV Slug. 02187_ Destroyed Asb. Hover Unit. 02187_ Penetrated by HV Slug. 02189_ as-83976 destroyed. 02190_ The unstable cave ceiling collapses. 02192_ Penetrated by HV Slug. 02203_ AWS/Thermal suddenly breaks down. 02203_ Penetrated by HV Slug. 02203_ Critical hit. 02203_ AWS/Thermal destroyed. 02203_ Penetrated by HV Slug. 02214_ HV Slug penetrates Wall. 02214_ Penetrated by HV Slug. 02216_ The unstable cave ceiling collapses. 02216_ Penetrated by HV Slug. 02216_ Critical hit. 02216_ Missile Launcher destroyed. 02219_ Penetrated by HV Slug. Map ----- +----------------------------------------------------+ | ????????????????????# ] #????????????????????? | | ????????????????????# ] #????????????????????? | | ????????????????????# ] X#????????????????????? | | ????????????????????## ##????????????????????? | | ????????????????????#X #?????????????????????? | | ????????????????????## #?????????????????????? | | ?????????????????????# #?????????????????????? | | ?????????????????????# #???###???????????????? | | ?????????????????????# #??""""???????????????? | | ?????????????????????# ## """??????????????? | | ?????????????????????# X""??????????????? | | ?????????????????????# ## """??????????????? | | ??????????????#####??# #??"""""??????????????? | | ??????????????""""""?# #???###???????????????? | | ??????????????"""" ## #?????????????????????? | | ?????????????#""X" #?????????????????????? | | ?????????????#" #?????????????????????? | | ?????????????#" ## #?????????????????????? | | ?????????????#""""""?# #?#########???????????? | | ?????????????##"###??# #?#"""""""#???????????? | | ?????????????? ??????# #?#"""""""#???????????? | | ?????????????????????# #?#"""""""#???????????? | | ????????????????????## ###"" """"#???????????? | | ????????????????????#" """"#???????????? | | ????????????????????#" """#???????????? | | ????????????????????# @ """#???????????? | | ????????????????????# """#???????????? | | ???????##???????????# """#???????????? | | ??????? """????????# %% """#???????????? | | ???????" """#???????# % ""??????????? | | ??????"" ????????## "##??????????? | | ?????#"" ?????????# "???????????? | | ?????#"" "#????????; # ??????????? | | ?????? ""????????##" """ ??????????? | | ???????" "?????????## # # ## ??????????? | | ???????# #????????##" ######????????????? | | ##???### ###?######" ?#?????????????????? | | "#####X# #"###"""""" g ???????????????????? | | """""" " ???###########?????? | | "" """ ####"""""""""##????? | | " " " """ """"##???? | | "" " #???? | | " """#???? | | " "#???? | | " "##??? | | " ""###? | | """ """""" """#? | | " ######""" "#? | | " ""##????#####""" ## | | "" """##?????????##""" # | +----------------------------------------------------+ Best States ------------- Heat Dissipation 25 Energy Generation 14 Energy Capacity 250 Matter Stores 300 Matter Capacity 300 Sight Range 16 Robot Scan Range 10 Terrain Scan Density 10 Armor Coverage 150 Propulsion Shielding 33 Evasion (%) 50 Recoil Reduction 2 Item Schematics ----------------- None Robot Schematics ------------------ None Fabricated ------------ Nothing Alien Tech Used ----------------- None Achievements -------------- None Challenges ------------ None Game ------ Seed ImprovedOpticalPlating Manual? 0 Play Time 00:16:43 Cumulative 63.0 hours Start 2019.10.30 @ 10:26:08 End 2019.10.30 @ 10:41:56 Sessions 1 Manual Loads 0 Difficulty Rogue Special Mode None Game No. 99 Rogue 99 Adventurer 0 Explorer 0 Win Type - Total 0 Types 0/0/0/0/0/0/0 Lore% 27 Gallery% 38 Achievement% 29 Wizard Run 0 Options --------- ASCII 0 Keyboard 0 Movement Mouse Keybinds 0 Fullscreen 1 Font 18/SmallcapsGlow Map View 76x50 Tactical HUD 1 Map Filters NONE Filters NONE Steam 1 RUN: 132a1d61-7d1d-4a22-9b02-fbb87eaf9117